[Event "Paul Keres Memorial Festival 2022"]
[Site "Pärnu, Estonia Resort Hotel & Spa"]
[Date "2022.07.22"]
[Round "9.5"]
[White "Kull, Tormi"]
[Black "Chukavin, Kirill"]
[Result "0-1"]
[TimeControl "60 min for 30 moves + 30 min until game end, from first move every move 30 sec time increment"]
[BlackTitle "FM"]
[WhiteFideId "4510151"]
[BlackFideId "4503023"]
[WhiteElo "1826"]
[BlackElo "2418"]

1. e4 {[%clk 01:00:59]} {[%emt 00:00:02]} c5 {[%clk 00:58:26]} {[%emt
00:02:33]} 2. Nf3 {[%clk 01:01:00]} {[%emt 00:00:28]} a6 {[%clk 00:58:48]}
{[%emt 00:00:08]} 3. d4 {[%clk 01:01:17]} {[%emt 00:00:13]} cxd4 {[%clk
00:59:10]} {[%emt 00:00:09]} 4. Nxd4 {[%clk 01:01:41]} {[%emt 00:00:06]} Nf6
{[%clk 00:59:34]} {[%emt 00:00:06]} 5. Nc3 {[%clk 01:01:45]} {[%emt 00:00:25]}
e5 {[%clk 00:59:36]} {[%emt 00:00:29]} 6. Nf3 {[%clk 01:00:16]} {[%emt
00:01:59]} Nc6 {[%clk 00:59:22]} {[%emt 00:00:44]} 7. Bg5 {[%clk 00:59:17]}
{[%emt 00:01:28]} Bb4 {[%clk 00:49:03]} {[%emt 00:10:49]} 8. Qd3 {[%clk
00:55:13]} {[%emt 00:04:34]} h6 {[%clk 00:41:48]} {[%emt 00:07:45]} 9. Bxf6
{[%clk 00:53:56]} {[%emt 00:01:47]} Qxf6 {[%clk 00:41:34]} {[%emt 00:00:44]} 10.
a3 {[%clk 00:53:33]} {[%emt 00:00:54]} Bxc3+ {[%clk 00:41:05]} {[%emt
00:00:59]} 11. Qxc3 {[%clk 00:53:57]} {[%emt 00:00:07]} d6 {[%clk 00:41:05]}
{[%emt 00:00:30]} 12. Rd1 {[%clk 00:52:12]} {[%emt 00:02:15]} O-O {[%clk
00:39:20]} {[%emt 00:02:15]} 13. Bc4 {[%clk 00:47:52]} {[%emt 00:04:50]} Bg4
{[%clk 00:33:54]} {[%emt 00:05:55]} 14. Be2 {[%clk 00:40:17]} {[%emt 00:08:05]}
Rac8 {[%clk 00:31:58]} {[%emt 00:02:26]} 15. Qd3 {[%clk 00:39:05]} {[%emt
00:01:42]} Rfd8 {[%clk 00:29:03]} {[%emt 00:03:25]} 16. O-O {[%clk 00:38:44]}
{[%emt 00:00:52]} Ne7 {[%clk 00:26:58]} {[%emt 00:02:35]} 17. h3 {[%clk
00:35:50]} {[%emt 00:03:23]} Be6 {[%clk 00:25:17]} {[%emt 00:02:11]} 18. b3
{[%clk 00:30:19]} {[%emt 00:06:01]} Ng6 {[%clk 00:24:03]} {[%emt 00:01:44]} 19.
Kh2 {[%clk 00:22:52]} {[%emt 00:07:58]} Nf4 {[%clk 00:22:51]} {[%emt 00:01:42]}
20. Qd2 {[%clk 00:23:01]} {[%emt 00:00:21]} d5 {[%clk 00:21:11]} {[%emt
00:02:11]} 21. exd5 {[%clk 00:22:01]} {[%emt 00:01:30]} Rxd5 {[%clk 00:18:56]}
{[%emt 00:02:45]} 22. Qe3 {[%clk 00:20:51]} {[%emt 00:01:39]} Rxc2 {[%clk
00:19:14]} {[%emt 00:00:13]} 23. Bc4 {[%clk 00:21:14]} {[%emt 00:00:07]} Rxd1
{[%clk 00:18:28]} {[%emt 00:01:17]} 24. Rxd1 {[%clk 00:21:30]} {[%emt
00:00:13]} Bxc4 {[%clk 00:18:15]} {[%emt 00:00:43]} 25. bxc4 {[%clk 00:21:53]}
{[%emt 00:00:08]} Re2 {[%clk 00:16:12]} {[%emt 00:02:33]} 26. Qc5 {[%clk
00:20:46]} {[%emt 00:01:37]} Ne6 {[%clk 00:12:54]} {[%emt 00:03:49]} 27. Qc8+
{[%clk 00:20:03]} {[%emt 00:01:13]} Kh7 {[%clk 00:13:20]} {[%emt 00:00:04]} 28.
Qxb7 {[%clk 00:20:22]} {[%emt 00:00:10]} e4 {[%clk 00:13:32]} {[%emt 00:00:18]}
29. Rd7 {[%clk 00:20:05]} {[%emt 00:00:47]} exf3 {[%clk 00:13:44]} {[%emt
00:00:18]} 30. Rxf7 {[%clk 00:50:21]} {[%emt 00:00:14]} Qe5+ {[%clk 00:44:06]}
{[%emt 00:00:08]} 0-1

[Event "Paul Keres Memorial Festival 2022"]
[Site "Pärnu, Estonia Resort Hotel & Spa"]
[Date "2022.07.22"]
[Round "9.6"]
[White "Medar, Marti"]
[Black "Raag, Ardi"]
[Result "0-1"]
[TimeControl "60 min for 30 moves + 30 min until game end, from first move every move 30 sec time increment"]
[WhiteFideId "4501870"]
[BlackFideId "4509269"]
[WhiteElo "2066"]
[BlackElo "1971"]

1. c4 {[%clk 01:00:55]} {[%emt 00:00:03]} e5 {[%clk 01:00:48]} {[%emt
00:00:13]} 2. Nc3 {[%clk 01:01:04]} {[%emt 00:00:20]} Nf6 {[%clk 01:01:13]}
{[%emt 00:00:04]} 3. e3 {[%clk 00:57:11]} {[%emt 00:04:25]} Bb4 {[%clk
01:00:25]} {[%emt 00:01:19]} 4. a3 {[%clk 00:53:16]} {[%emt 00:04:25]} Bxc3
{[%clk 01:00:41]} {[%emt 00:00:14]} 5. dxc3 {[%clk 00:52:29]} {[%emt 00:01:16]}
O-O {[%clk 00:58:39]} {[%emt 00:02:32]} 6. g4 {[%clk 00:49:44]} {[%emt
00:03:15]} d6 {[%clk 00:51:13]} {[%emt 00:07:57]} 7. g5 {[%clk 00:48:19]}
{[%emt 00:01:54]} Ne4 {[%clk 00:50:53]} {[%emt 00:00:51]} 8. h4 {[%clk
00:47:57]} {[%emt 00:00:50]} f5 {[%clk 00:44:22]} {[%emt 00:07:03]} 9. Ne2
{[%clk 00:42:11]} {[%emt 00:06:14]} Be6 {[%clk 00:42:39]} {[%emt 00:02:14]} 10.
f3 {[%clk 00:40:40]} {[%emt 00:02:00]} Nc5 {[%clk 00:42:24]} {[%emt 00:00:47]}
11. Ng3 {[%clk 00:36:20]} {[%emt 00:04:49]} a5 {[%clk 00:36:50]} {[%emt
00:06:05]} 12. b4 {[%clk 00:32:16]} {[%emt 00:04:34]} Ncd7 {[%clk 00:36:46]}
{[%emt 00:00:35]} 13. e4 {[%clk 00:27:31]} {[%emt 00:05:15]} f4 {[%clk
00:34:54]} {[%emt 00:02:22]} 14. Nf5 {[%clk 00:27:35]} {[%emt 00:00:25]} Nc6
{[%clk 00:34:04]} {[%emt 00:01:20]} 15. Rb1 {[%clk 00:22:31]} {[%emt 00:05:35]}
Ne7 {[%clk 00:33:12]} {[%emt 00:01:22]} 16. Bd3 {[%clk 00:17:01]} {[%emt
00:05:59]} Nb6 {[%clk 00:29:53]} {[%emt 00:03:50]} 17. Qe2 {[%clk 00:16:26]}
{[%emt 00:01:04]} Nxf5 {[%clk 00:24:52]} {[%emt 00:05:32]} 18. exf5 {[%clk
00:16:51]} {[%emt 00:00:05]} Bxf5 {[%clk 00:25:16]} {[%emt 00:00:06]} 19. Bxf5
{[%clk 00:16:35]} {[%emt 00:00:45]} Rxf5 {[%clk 00:25:42]} {[%emt 00:00:05]} 20.
Qe4 {[%clk 00:15:38]} {[%emt 00:01:27]} Rf7 {[%clk 00:22:07]} {[%emt 00:04:05]}
21. Qxb7 {[%clk 00:11:52]} {[%emt 00:04:16]} Nxc4 {[%clk 00:22:10]} {[%emt
00:00:28]} 22. Qc6 {[%clk 00:11:23]} {[%emt 00:00:58]} Nb6 {[%clk 00:21:09]}
{[%emt 00:01:32]} 23. Rh2 {[%clk 00:07:56]} {[%emt 00:03:56]} Qd7 {[%clk
00:19:18]} {[%emt 00:02:22]} 24. Qe4 {[%clk 00:05:41]} {[%emt 00:02:45]} d5
{[%clk 00:19:04]} {[%emt 00:00:45]} 25. Qd3 {[%clk 00:05:55]} {[%emt 00:00:15]}
e4 {[%clk 00:16:19]} {[%emt 00:03:15]} 26. fxe4 {[%clk 00:04:43]} {[%emt
00:01:42]} dxe4 {[%clk 00:16:45]} {[%emt 00:00:05]} 27. Qxd7 {[%clk 00:04:29]}
{[%emt 00:00:44]} Nxd7 {[%clk 00:17:08]} {[%emt 00:00:08]} 28. c4 {[%clk
00:04:19]} {[%emt 00:00:40]} Ne5 {[%clk 00:17:06]} {[%emt 00:00:32]} 29. Rc2
{[%clk 00:03:43]} {[%emt 00:01:06]} Nf3+ {[%clk 00:13:41]} {[%emt 00:03:55]} 30.
Kf1 {[%clk 00:33:21]} {[%emt 00:00:52]} axb4 {[%clk 00:40:23]} {[%emt
00:03:49]} 31. axb4 {[%clk 00:32:55]} {[%emt 00:00:55]} Rd8 {[%clk 00:36:59]}
{[%emt 00:03:54]} 32. b5 {[%clk 00:32:36]} {[%emt 00:00:50]} Rd1+ {[%clk
00:36:05]} {[%emt 00:01:24]} 33. Kf2 {[%clk 00:31:48]} {[%emt 00:01:18]} Nd4
{[%clk 00:35:22]} {[%emt 00:01:13]} 0-1

[Event "Paul Keres Memorial Festival 2022"]
[Site "Pärnu, Estonia Resort Hotel & Spa"]
[Date "2022.07.22"]
[Round "9.7"]
[White "Andrijashkin, Deniss"]
[Black "Protassov, Vlad"]
[Result "1-0"]
[TimeControl "60 min for 30 moves + 30 min until game end, from first move every move 30 sec time increment"]
[WhiteFideId "4504631"]
[BlackFideId "4507010"]
[WhiteElo "2006"]
[BlackElo "1824"]

1. e4 {[%clk 00:58:53]} {[%emt 00:02:03]} c6 {[%clk 01:00:23]} {[%emt
00:00:41]} 2. d4 {[%clk 00:59:19]} {[%emt 00:00:04]} d5 {[%clk 01:00:32]}
{[%emt 00:00:21]} 3. f3 {[%clk 00:59:47]} {[%emt 00:00:02]} dxe4 {[%clk
01:00:54]} {[%emt 00:00:07]} 4. fxe4 {[%clk 00:59:03]} {[%emt 00:01:15]} e5
{[%clk 01:01:20]} {[%emt 00:00:04]} 5. Nf3 {[%clk 00:59:30]} {[%emt 00:00:03]}
Be6 {[%clk 01:01:43]} {[%emt 00:00:07]} 6. Bd3 {[%clk 00:53:30]} {[%emt
00:06:30]} Nd7 {[%clk 01:01:28]} {[%emt 00:00:45]} 7. c3 {[%clk 00:48:22]}
{[%emt 00:05:37]} Ngf6 {[%clk 01:01:52]} {[%emt 00:00:06]} 8. O-O {[%clk
00:45:48]} {[%emt 00:03:04]} Bd6 {[%clk 01:02:02]} {[%emt 00:00:20]} 9. Kh1
{[%clk 00:37:26]} {[%emt 00:08:52]} Qc7 {[%clk 01:02:16]} {[%emt 00:00:16]} 10.
Be3 {[%clk 00:37:32]} {[%emt 00:00:24]} O-O {[%clk 00:55:28]} {[%emt 00:07:18]}
11. Nbd2 {[%clk 00:35:59]} {[%emt 00:02:03]} b5 {[%clk 00:55:25]} {[%emt
00:00:33]} 12. Qe1 {[%clk 00:35:23]} {[%emt 00:01:06]} Rae8 {[%clk 00:51:01]}
{[%emt 00:04:55]} 13. Qh4 {[%clk 00:28:01]} {[%emt 00:07:51]} Be7 {[%clk
00:48:23]} {[%emt 00:03:08]} 14. Ng5 {[%clk 00:27:16]} {[%emt 00:01:13]} h6
{[%clk 00:48:27]} {[%emt 00:00:27]} 15. Nxe6 {[%clk 00:26:53]} {[%emt
00:00:54]} fxe6 {[%clk 00:48:47]} {[%emt 00:00:10]} 16. Qh3 {[%clk 00:26:50]}
{[%emt 00:00:27]} Qd6 {[%clk 00:45:37]} {[%emt 00:03:45]} 17. Nf3 {[%clk
00:24:09]} {[%emt 00:03:10]} Nh7 {[%clk 00:44:35]} {[%emt 00:01:33]} 18. Qg4
{[%clk 00:21:40]} {[%emt 00:02:58]} Kh8 {[%clk 00:44:24]} {[%emt 00:00:42]} 19.
Rad1 {[%clk 00:19:06]} {[%emt 00:03:04]} Qc7 {[%clk 00:41:31]} {[%emt
00:03:23]} 20. Qg6 {[%clk 00:14:00]} {[%emt 00:05:34]} Bd6 {[%clk 00:29:38]}
{[%emt 00:12:26]} 21. Nh4 {[%clk 00:08:30]} {[%emt 00:05:59]} Rxf1+ {[%clk
00:28:17]} {[%emt 00:01:51]} 22. Rxf1 {[%clk 00:08:41]} {[%emt 00:00:18]} Rf8
{[%clk 00:28:03]} {[%emt 00:00:42]} 23. Qxe6 {[%clk 00:05:29]} {[%emt
00:03:44]} Rxf1+ {[%clk 00:28:26]} {[%emt 00:00:07]} 24. Bxf1 {[%clk 00:05:56]}
{[%emt 00:00:02]} Nhf8 {[%clk 00:28:51]} {[%emt 00:00:05]} 25. Qf7 {[%clk
00:03:35]} {[%emt 00:02:50]} Nf6 {[%clk 00:26:43]} {[%emt 00:02:39]} 26. Qxc7
{[%clk 00:02:15]} {[%emt 00:01:51]} Bxc7 {[%clk 00:27:10]} {[%emt 00:00:02]} 27.
dxe5 {[%clk 00:01:13]} {[%emt 00:01:31]} Bxe5 {[%clk 00:27:13]} {[%emt
00:00:27]} 28. Bxa7 {[%clk 00:00:56]} {[%emt 00:00:48]} Nxe4 {[%clk 00:27:35]}
{[%emt 00:00:08]} 29. Bd3 {[%clk 00:01:00]} {[%emt 00:00:24]} Nd6 {[%clk
00:26:34]} {[%emt 00:01:33]} 30. Nf3 {[%clk 00:30:34]} {[%emt 00:00:56]} Bf4
{[%clk 00:55:45]} {[%emt 00:01:18]} 31. g3 {[%clk 00:16:03]} {[%emt 00:15:02]}
Nc8 {[%emt 00:00:09]} 32. Bc5 {[%emt 00:00:03]} Nd7 {[%emt 00:00:06]} 33. Bf2
{[%emt 00:00:12]} Nf8 {[%emt 00:00:05]} 1-0

[Event "Paul Keres Memorial Festival 2022"]
[Site "Pärnu, Estonia Resort Hotel & Spa"]
[Date "2022.07.22"]
[Round "9.8"]
[White "Zafra, Kim"]
[Black "Olde, Karl Erik"]
[Result "0-1"]
[TimeControl "60 min for 30 moves + 30 min until game end, from first move every move 30 sec time increment"]
[BlackFideId "4505760"]
[WhiteElo "1623"]
[BlackElo "1842"]

1. e4 {[%clk 00:56:40]} {[%emt 00:04:19]} c5 {[%clk 01:00:28]} {[%emt
00:00:32]} 2. Nf3 {[%clk 00:57:09]} {[%emt 00:00:01]} Nc6 {[%clk 01:00:51]}
{[%emt 00:00:08]} 3. d4 {[%clk 00:57:37]} cxd4 {[%clk 01:01:14]} {[%emt
00:00:08]} 4. Nxd4 {[%clk 00:58:07]} Nf6 {[%clk 01:01:42]} {[%emt 00:00:03]} 5.
Nc3 {[%clk 00:58:14]} {[%emt 00:00:22]} d6 {[%clk 01:02:06]} {[%emt 00:00:07]}
6. Bg5 {[%clk 00:58:17]} {[%emt 00:00:26]} e5 {[%clk 01:01:23]} {[%emt
00:01:13]} 7. Ndb5 {[%clk 00:58:30]} {[%emt 00:00:17]} a6 {[%clk 01:01:09]}
{[%emt 00:00:44]} 8. Na3 {[%clk 00:58:59]} Be6 {[%clk 01:01:00]} {[%emt
00:00:39]} 9. Bc4 {[%clk 00:58:30]} {[%emt 00:00:58]} b5 {[%clk 00:58:27]}
{[%emt 00:03:05]} 10. Bxe6 {[%clk 00:58:52]} {[%emt 00:00:08]} fxe6 {[%clk
00:58:55]} {[%emt 00:00:01]} 11. Bxf6 {[%clk 00:52:51]} {[%emt 00:06:30]} Qxf6
{[%clk 00:58:58]} {[%emt 00:00:27]} 12. Ne2 {[%clk 00:50:19]} {[%emt 00:03:03]}
Rd8 {[%clk 00:58:11]} {[%emt 00:01:17]} 13. c4 {[%clk 00:49:28]} {[%emt
00:01:21]} Qg6 {[%clk 00:51:01]} {[%emt 00:07:40]} 14. cxb5 {[%clk 00:46:21]}
{[%emt 00:03:38]} axb5 {[%clk 00:50:53]} {[%emt 00:00:39]} 15. Ng3 {[%clk
00:38:02]} {[%emt 00:08:48]} d5 {[%clk 00:44:49]} {[%emt 00:06:34]} 16. Nxb5
{[%clk 00:37:16]} {[%emt 00:01:16]} Bb4+ {[%clk 00:43:59]} {[%emt 00:01:19]} 17.
Nc3 {[%clk 00:35:34]} {[%emt 00:02:12]} d4 {[%clk 00:40:51]} {[%emt 00:03:39]}
18. Qa4 {[%clk 00:35:28]} {[%emt 00:00:35]} O-O {[%clk 00:29:23]} {[%emt
00:11:59]} 19. O-O {[%clk 00:32:41]} {[%emt 00:03:16]} Rc8 {[%clk 00:23:50]}
{[%emt 00:06:02]} 20. a3 {[%clk 00:26:51]} {[%emt 00:06:21]} Bxc3 {[%clk
00:23:02]} {[%emt 00:01:19]} 21. bxc3 {[%clk 00:27:12]} {[%emt 00:00:09]} dxc3
{[%clk 00:23:27]} {[%emt 00:00:05]} 22. Ne2 {[%clk 00:26:58]} {[%emt 00:00:44]}
Nd4 {[%clk 00:23:25]} {[%emt 00:00:32]} 23. Nxd4 {[%clk 00:26:48]} {[%emt
00:00:39]} Qxe4 {[%clk 00:23:35]} {[%emt 00:00:21]} 24. Qc2 {[%clk 00:20:50]}
{[%emt 00:06:27]} Qxd4 {[%clk 00:22:47]} {[%emt 00:01:19]} 25. Rfd1 {[%clk
00:20:00]} {[%emt 00:01:19]} Qc5 {[%clk 00:22:29]} {[%emt 00:00:49]} 26. Rd3
{[%clk 00:19:46]} {[%emt 00:00:44]} Rfd8 {[%clk 00:19:48]} {[%emt 00:03:11]} 27.
h3 {[%clk 00:14:13]} {[%emt 00:06:03]} Qc4 {[%clk 00:15:15]} {[%emt 00:05:04]}
28. Rxd8+ {[%clk 00:12:57]} {[%emt 00:01:46]} Rxd8 {[%clk 00:15:43]} {[%emt
00:00:02]} 29. Rc1 {[%clk 00:12:48]} {[%emt 00:00:39]} Rd2 {[%clk 00:14:46]}
{[%emt 00:01:28]} 30. Qb1 {[%clk 00:40:26]} {[%emt 00:02:51]} Rb2 {[%clk
00:44:44]} {[%emt 00:00:32]} 31. Qa1 {[%clk 00:39:38]} {[%emt 00:01:19]} Qb3
{[%clk 00:44:41]} {[%emt 00:00:33]} 32. Kh2 {[%clk 00:31:27]} {[%emt 00:08:40]}
c2 {[%clk 00:44:05]} {[%emt 00:01:06]} 33. Re1 {[%clk 00:26:16]} {[%emt
00:05:41]} Rb1 {[%clk 00:43:45]} {[%emt 00:00:51]} 34. Qxe5 {[%clk 00:26:04]}
{[%emt 00:00:42]} c1=Q {[%clk 00:44:01]} {[%emt 00:00:12]} 35. Rxc1 {[%clk
00:24:19]} {[%emt 00:02:16]} Rxc1 {[%clk 00:44:24]} {[%emt 00:00:07]} 36. Qg5
{[%clk 00:24:21]} {[%emt 00:00:27]} Rc8 {[%clk 00:44:22]} {[%emt 00:00:32]} 37.
Qe7 {[%clk 00:24:30]} {[%emt 00:00:21]} Qc4 {[%clk 00:44:16]} {[%emt 00:00:37]}
38. g3 {[%clk 00:24:30]} {[%emt 00:00:30]} Rf8 {[%clk 00:44:37]} {[%emt
00:00:08]} 39. Kg2 {[%clk 00:23:18]} {[%emt 00:01:42]} Qd5+ {[%clk 00:44:56]}
{[%emt 00:00:12]} 40. Kg1 {[%clk 00:22:36]} {[%emt 00:01:13]} Qd1+ {[%clk
00:45:12]} {[%emt 00:00:14]} 41. Kg2 {[%clk 00:22:43]} {[%emt 00:00:23]} Qf3+
{[%clk 00:45:38]} {[%emt 00:00:04]} 0-1

[ePGN "0.1;DGT LiveChess/2.2.5"]

[Event "Paul Kerese Mälestusfestival 2022 Kiirturniir"]
[Site "Pärnu, Estonia Resort Hotel & Spa"]
[Date "????.??.??"]
[Round "1.1"]
[White "Shirov, Alexei"]
[Black "Valdats, Reinis"]
[Result "1-0"]
[TimeControl "15 minutit partiile + 3 sek käigule"]
[WhiteTitle "GM"]
[WhiteFideId "2209390"]
[WhiteElo "2621"]
[BlackElo "1497"]

1. e4 {[%clk 00:15:03]} {[%emt 00:00:01]} c5 {[%clk 00:15:05]} {[%emt
00:00:02]} 2. Nf3 {[%clk 00:15:05]} {[%emt 00:00:02]} e6 {[%clk 00:15:06]}
{[%emt 00:00:01]} 3. d4 {[%clk 00:15:04]} {[%emt 00:00:04]} cxd4 {[%clk
00:15:08]} {[%emt 00:00:02]} 4. Nxd4 {[%clk 00:15:05]} {[%emt 00:00:01]} Nc6
{[%clk 00:15:10]} {[%emt 00:00:01]} 5. Nc3 {[%clk 00:15:02]} {[%emt 00:00:06]}
Qc7 {[%clk 00:15:11]} {[%emt 00:00:02]} 6. Be3 {[%clk 00:15:00]} {[%emt
00:00:05]} a6 {[%clk 00:15:13]} {[%emt 00:00:02]} 7. Qf3 {[%clk 00:14:57]}
{[%emt 00:00:05]} Nf6 {[%clk 00:14:48]} {[%emt 00:00:29]} 8. O-O-O {[%clk
00:14:45]} {[%emt 00:00:15]} Bb4 {[%clk 00:14:24]} {[%emt 00:00:27]} 9. Nxc6
{[%clk 00:11:40]} {[%emt 00:03:08]} bxc6 {[%clk 00:13:45]} {[%emt 00:00:43]} 10.
Bd4 {[%clk 00:11:42]} {[%emt 00:00:02]} e5 {[%clk 00:13:27]} {[%emt 00:00:21]}
11. Qg3 {[%clk 00:11:43]} {[%emt 00:00:01]} Bxc3 {[%clk 00:12:23]} {[%emt
00:01:07]} 12. Bxc3 {[%clk 00:11:34]} {[%emt 00:00:12]} Nxe4 {[%clk 00:10:36]}
{[%emt 00:01:51]} 13. Qxg7 {[%clk 00:10:01]} {[%emt 00:01:36]} Rf8 {[%clk
00:10:29]} {[%emt 00:00:10]} 14. Bxe5 {[%clk 00:08:35]} {[%emt 00:01:29]} Qa5
{[%clk 00:09:46]} {[%emt 00:00:46]} 15. Bd3 {[%clk 00:08:04]} {[%emt 00:00:34]}
Nxf2 {[%clk 00:09:18]} {[%emt 00:00:31]} 16. Bd6 {[%clk 00:08:05]} {[%emt
00:00:02]} Nxd3+ {[%clk 00:06:36]} {[%emt 00:02:45]} 17. Rxd3 {[%clk 00:07:53]}
{[%emt 00:00:15]} Qxa2 {[%clk 00:04:27]} {[%emt 00:02:12]} 18. Qxf8# {[%emt
00:00:05]} 1-0

[Event "Paul Kerese Mälestusfestival 2022 Kiirturniir"]
[Site "Pärnu, Estonia Resort Hotel & Spa"]
[Date "????.??.??"]
[Round "1.2"]
[White "Rezniks, Roberts"]
[Black "Agrest, Evgenij"]
[Result "0-1"]
[TimeControl "15 minutit partiile + 3 sek käigule"]
[BlackTitle "GM"]
[WhiteElo "1492"]
[BlackElo "2563"]

1. e4 {[%emt 00:38:18]} c6 {[%clk 00:15:00]} {[%emt 00:00:02]} 2. d4 {[%clk
00:15:04]} {[%emt 00:00:02]} d5 {[%clk 00:14:57]} {[%emt 00:00:05]} 3. Nc3
{[%clk 00:15:05]} {[%emt 00:00:02]} dxe4 {[%clk 00:14:53]} {[%emt 00:00:06]} 4.
Nxe4 {[%clk 00:15:05]} {[%emt 00:00:03]} Nf6 {[%clk 00:14:53]} {[%emt
00:00:03]} 5. Nxf6+ {[%clk 00:15:05]} {[%emt 00:00:03]} exf6 {[%clk 00:14:53]}
{[%emt 00:00:04]} 6. c3 {[%clk 00:15:04]} {[%emt 00:00:04]} Bd6 {[%clk
00:14:49]} {[%emt 00:00:06]} 7. Bd3 {[%clk 00:15:04]} {[%emt 00:00:03]} Na6
{[%clk 00:14:48]} {[%emt 00:00:04]} 8. Ne2 {[%clk 00:15:03]} {[%emt 00:00:04]}
Nc7 {[%clk 00:14:25]} {[%emt 00:00:26]} 9. Bf4 {[%clk 00:14:34]} {[%emt
00:00:32]} Nd5 {[%clk 00:13:34]} {[%emt 00:00:53]} 10. Bxd6 {[%clk 00:14:32]}
{[%emt 00:00:06]} Qxd6 {[%clk 00:13:35]} {[%emt 00:00:02]} 11. O-O {[%clk
00:14:15]} {[%emt 00:00:20]} O-O {[%clk 00:13:09]} {[%emt 00:00:29]} 12. Re1
{[%clk 00:13:24]} {[%emt 00:00:53]} g6 {[%clk 00:12:56]} {[%emt 00:00:15]} 13.
Qd2 {[%clk 00:11:31]} {[%emt 00:01:57]} Kg7 {[%clk 00:10:36]} {[%emt 00:02:23]}
14. h3 {[%clk 00:10:24]} {[%emt 00:01:10]} f5 {[%clk 00:10:02]} {[%emt
00:00:37]} 15. Bc2 {[%clk 00:09:15]} {[%emt 00:01:12]} a5 {[%clk 00:09:10]}
{[%emt 00:00:55]} 16. Ng3 {[%clk 00:09:15]} {[%emt 00:00:03]} Qf4 {[%clk
00:08:09]} {[%emt 00:01:04]} 17. Qxf4 {[%clk 00:08:53]} {[%emt 00:00:26]} Nxf4
{[%clk 00:08:11]} {[%emt 00:00:02]} 18. Re5 {[%clk 00:08:34]} {[%emt 00:00:21]}
Be6 {[%clk 00:07:41]} {[%emt 00:00:32]} 19. a4 {[%clk 00:08:28]} {[%emt
00:00:10]} Bd5 {[%clk 00:05:46]} {[%emt 00:01:58]} 20. f3 {[%clk 00:08:00]}
{[%emt 00:00:31]} Rfe8 {[%clk 00:05:43]} {[%emt 00:00:06]} 21. Rae1 {[%clk
00:08:00]} {[%emt 00:00:03]} Rxe5 {[%clk 00:05:44]} {[%emt 00:00:02]} 22. Rxe5
{[%clk 00:08:01]} {[%emt 00:00:02]} Bc4 {[%clk 00:04:56]} {[%emt 00:00:51]} 23.
Re3 {[%clk 00:07:14]} {[%emt 00:00:51]} Kf6 {[%clk 00:04:30]} {[%emt 00:00:29]}
24. Kf2 {[%clk 00:07:11]} {[%emt 00:00:06]} Rb8 {[%clk 00:04:12]} {[%emt
00:00:21]} 25. b3 {[%clk 00:06:45]} {[%emt 00:00:30]} Be6 {[%clk 00:04:12]}
{[%emt 00:00:02]} 26. Ne2 {[%clk 00:06:24]} {[%emt 00:00:24]} Nd5 {[%clk
00:04:06]} {[%emt 00:00:09]} 27. Rd3 {[%clk 00:06:11]} {[%emt 00:00:16]} b5
{[%clk 00:04:00]} {[%emt 00:00:09]} 28. axb5 {[%clk 00:05:33]} {[%emt
00:00:42]} cxb5 {[%clk 00:04:01]} {[%emt 00:00:02]} 29. c4 {[%clk 00:05:32]}
{[%emt 00:00:04]} Nb4 {[%clk 00:03:55]} {[%emt 00:00:09]} 30. Rc3 {[%clk
00:05:34]} {[%emt 00:00:01]} Na2 {[%clk 00:03:49]} {[%emt 00:00:09]} 31. d5
{[%clk 00:04:59]} {[%emt 00:00:38]} Nxc3 {[%clk 00:03:25]} {[%emt 00:00:26]} 32.
Nxc3 {[%clk 00:05:00]} {[%emt 00:00:02]} Bd7 {[%clk 00:03:17]} {[%emt
00:00:12]} 33. Ke3 {[%clk 00:04:55]} {[%emt 00:00:08]} bxc4 {[%clk 00:03:14]}
{[%emt 00:00:06]} 34. bxc4 {[%clk 00:04:57]} {[%emt 00:00:01]} Rb2 {[%clk
00:03:15]} {[%emt 00:00:02]} 35. Kd3 {[%clk 00:04:51]} {[%emt 00:00:09]} Ke5
{[%clk 00:03:10]} {[%emt 00:00:09]} 36. c5 {[%clk 00:04:51]} {[%emt 00:00:03]}
f4 {[%clk 00:03:10]} {[%emt 00:00:03]} 37. c6 {[%clk 00:04:41]} {[%emt
00:00:12]} Bf5+ {[%clk 00:03:12]} {[%emt 00:00:02]} 0-1